bitfinex-derivatives/quotes_ETHF0:USTF0_20260201
["timestamp","ask_amount","ask_price","bid_price","bid_amount"]
[1769987564935,0.00532165,2250.2,2248.5,2.53054768]
[1769987565246,0.22221,2252.5,2249.2,2.75307768]
[1769987565537,4.93240335,2252.8,2248.4,40.8]
[1769987565538,0.22224,2252.2,2249.4,2.53054768]
[1769987566038,0.22232,2251.4,2249.4,2.53449322]
[1769987566340,0.00416547,2252.2,2249.4,2.53449322]
[1769987566341,0.00416547,2252.2,2250.2,2.39643253]
[1769987566538,2.47353407,2254.0,2250.8,2.39643253]
[1769987566840,2.41858964,2254.7,2251.2,2.39643253]
[1769987567045,2.47353407,2254.4,2251.2,2.39643253]
[1769987567347,0.22201,2254.6,2251.4,2.61874253]
[1769987567544,0.00350225,2254.4,2251.6,2.39643253]
[1769987567742,2.42209189,2254.4,2251.8,2.39643253]
[1769987567941,2.41858964,2254.1,2251.8,2.39643253]
[1769987568140,4.95451836,2254.0,2251.8,2.39643253]
[1769987568346,0.00416219,2252.9,2251.3,2.39643253]
[1769987568547,0.22222,2252.4,2251.3,2.39643253]
[1769987568750,0.00389442,2252.4,2251.2,0.004568]
[1769987569044,0.22229,2251.7,2249.6,4.005]
[1769987569341,0.00389442,2252.4,2249.3,4.005]
[1769987569544,0.22222,2252.3,2249.3,4.005]
[1769987569845,0.00389442,2252.4,2249.3,4.005]
[1769987570046,2.41858964,2254.4,2251.1,0.22234]
[1769987570243,2.64050964,2255.4,2251.2,33.396]
[1769987570446,2.41858964,2255.6,2253.3,40.8]
[1769987570743,0.22187,2255.9,2253.5,2.39643253]
[1769987570937,2.41858964,2255.4,2253.5,2.39980663]
[1769987571137,2.41858964,2255.4,2253.5,0.0033741]
[1769987571338,2.41858964,2255.4,2253.4,4.004]
[1769987571549,0.22208,2253.8,2252.4,6.39943253]
[1769987571745,2.41858964,2254.3,2252.5,2.39643253]
[1769987571942,0.2221,2253.6,2252.6,40.8]
[1769987572141,2.41858964,2254.3,2252.6,40.8]
[1769987572343,0.00415419,2253.5,2252.4,6.39943253]
[1769987572646,0.22654224,2254.3,2252.6,2.40015505]
[1769987572844,0.00415419,2253.7,2252.7,6.39943253]
[1769987573045,0.00451224,2254.3,2252.8,2.39643253]
[1769987573544,2.03865012,2255.7,2253.0,2.39643253]
[1769987573750,0.22195,2255.2,2253.0,2.39643253]
[1769987573948,2.03865012,2255.7,2253.0,2.39643253]
[1769987574151,0.22183,2256.4,2253.0,2.39643253]
[1769987574342,2.64044964,2256.1,2253.0,2.39643253]
[1769987574542,2.42274383,2256.1,2253.0,2.39643253]
[1769987574747,2.42274383,2256.0,2253.0,2.39643253]
[1769987574947,0.33176645,2256.2,2253.3,2.39643253]
[1769987575145,0.2219,2255.7,2253.5,2.39643253]
[1769987575541,2.41858964,2255.8,2253.5,2.39643253]
[1769987575743,0.22194,2255.3,2253.5,2.39643253]
[1769987575947,0.00415419,2255.1,2253.5,2.39643253]
[1769987576256,0.33176645,2256.2,2253.5,2.39643253]
[1769987576551,0.22194,2255.2,2253.5,2.39643253]
[1769987576748,0.22195,2255.1,2253.5,2.39643253]
[1769987577046,2.75035609,2256.2,2253.5,2.39643253]
[1769987577348,0.00415419,2255.7,2253.5,2.39643253]
[1769987577551,0.00415419,2255.6,2253.5,2.39643253]
[1769987577849,0.22196,2255.0,2253.5,2.39643253]
[1769987578249,0.00415419,2255.0,2253.5,2.39643253]
[1769987578746,0.00415419,2254.6,2253.5,2.39643253]
[1769987578947,0.00561305,2254.6,2253.6,40.8]
[1769987579249,0.22202,2254.4,2253.4,4.001]
[1769987579445,0.00561305,2254.6,2253.5,2.39643253]
[1769987579746,2.41858964,2255.6,2253.5,2.39643253]
[1769987580047,0.00415419,2255.4,2253.5,2.39643253]
[1769987580246,0.32755347,2256.2,2254.2,2.39643253]
[1769987580545,2.7502973,2256.2,2254.2,2.39643253]
[1769987580745,0.00415419,2255.2,2254.2,0.00493948]
[1769987580949,0.22189,2255.7,2254.2,2.39644201]
[1769987581153,0.3321345,2256.2,2254.2,2.39644201]
[1769987581345,0.22165,2258.2,2254.7,2.39643253]
[1769987581546,2.41858964,2257.4,2255.4,2.39643253]
[1769987581845,2.41858964,2257.0,2255.5,40.8]
[1769987582046,2.64040964,2256.4,2254.6,3.998]
[1769987582248,0.22184,2256.2,2254.7,2.39643253]
[1769987582450,2.41858964,2256.9,2254.7,2.39643253]
[1769987582649,2.41858964,2258.1,2255.4,2.39643253]
[1769987582949,2.41858964,2258.2,2255.5,2.39643253]
[1769987583250,2.41858964,2257.9,2255.5,2.39643253]
[1769987583448,0.22172,2257.5,2255.5,2.39643253]
[1769987583648,0.00415419,2257.0,2255.5,2.39643253]
[1769987583850,0.22181,2256.5,2255.3,40.8]
[1769987584154,0.22193,2255.3,2253.7,2.39643253]
[1769987584348,0.22194,2255.2,2253.7,2.39643253]
[1769987584551,0.00359598,2255.3,2253.9,2.39643253]
[1769987584751,2.41858964,2256.8,2253.9,2.39643253]
[1769987585051,2.41858964,2256.7,2254.4,2.39643253]
[1769987585251,2.41858964,2256.7,2253.8,40.8]
[1769987585252,2.41858964,2255.6,2253.8,40.8]
[1769987585447,0.22185,2256.2,2253.9,2.39643253]
[1769987585852,0.0056913,2256.2,2253.9,2.40008947]
[1769987586145,2.41858964,2256.0,2253.9,2.40008947]
[1769987586352,0.00415419,2255.9,2253.9,2.40008947]
[1769987586650,0.00415419,2256.1,2253.9,2.40008947]
[1769987586951,2.41858964,2255.7,2253.9,2.40008947]
[1769987587254,0.0056913,2256.2,2253.9,2.40008947]
[1769987588149,0.22187,2256.0,2253.9,2.40008947]
[1769987588454,0.0056913,2256.2,2253.9,2.40008947]
[1769987588650,0.22188,2255.8,2253.9,2.40008947]
[1769987588853,0.00415419,2255.4,2253.9,2.40008947]
[1769987589154,0.22189,2255.7,2254.0,2.33462596]
[1769987589358,0.22608419,2255.3,2254.0,2.33462596]
[1769987589653,0.22194,2255.2,2253.9,0.00365694]
[1769987589853,0.00415419,2255.0,2253.9,2.3382829]
[1769987590053,2.50537908,2256.1,2253.9,2.3382829]
[1769987590351,0.0056913,2256.2,2254.6,2.33462596]
[1769987590655,2.50537908,2258.3,2255.5,2.33462596]
[1769987590850,2.50537908,2258.3,2255.8,2.33462596]
[1769987591153,2.50537908,2257.8,2255.9,2.33462596]
[1769987591347,0.22163,2258.3,2255.9,2.33462596]
[1769987591348,2.50537908,2258.3,2255.9,2.33462596]
[1769987591546,0.0040218,2258.3,2256.3,2.33462596]
[1769987591749,2.50537908,2257.0,2255.9,0.00472212]
[1769987592052,0.0040218,2258.3,2255.9,0.00472212]
[1769987592053,0.2218,2256.7,2255.9,0.00472212]
[1769987592256,0.00551487,2256.7,2255.9,0.00472212]
[1769987592452,0.22172,2257.4,2255.9,2.33934808]
[1769987592751,2.50537908,2259.7,2256.7,2.33462596]
[1769987592951,2.73103327,2259.7,2256.9,2.33462596]
[1769987593149,2.50537908,2259.7,2256.9,2.33462596]
[1769987593358,2.50537908,2259.5,2256.9,2.33462596]
[1769987593552,2.50537908,2258.7,2256.9,2.33462596]
[1769987593752,0.22168,2257.9,2256.4,2.33462596]
[1769987593946,0.22610891,2257.9,2256.4,2.33462596]
[1769987594150,0.00442891,2257.9,2256.4,2.33462596]
[1769987594455,0.00442891,2257.9,2255.9,0.00472212]
[1769987594456,0.00415419,2257.3,2255.9,2.33934808]
[1769987594656,0.2218,2256.7,2255.9,2.12e-06]
[1769987594848,0.22173,2257.3,2255.9,2.33462808]
[1769987595056,0.00415419,2257.3,2255.9,2.33462808]
[1769987595252,0.00442891,2257.9,2256.1,2.33462596]
[1769987595454,2.50980799,2257.9,2256.1,2.33462596]
[1769987595655,0.00415419,2257.6,2256.1,2.33462596]
[1769987595857,0.00415419,2257.5,2256.1,2.33462596]
[1769987596055,0.0085831,2257.9,2256.1,2.33462596]
[1769987596256,0.00442891,2257.9,2256.1,2.33462596]
[1769987596559,4.99637678,2257.8,2256.1,2.33462596]
[1769987596758,0.00415419,2257.4,2256.1,2.33462596]
[1769987596956,0.00415419,2257.2,2256.1,2.33462596]
[1769987597159,0.22157,2259.0,2256.2,2.33462596]
[1769987597350,4.97811763,2259.3,2256.3,2.33462596]
[1769987597555,2.50537908,2259.6,2256.8,2.33462596]
[1769987597960,2.50537908,2259.3,2256.8,2.33462596]
[1769987598257,0.00571743,2259.3,2256.8,2.33462596]
[1769987598557,0.00571743,2259.3,2256.7,5.42219314]
[1769987598558,0.00571743,2259.3,2257.4,2.33462596]
[1769987598750,2.50537908,2260.5,2257.6,2.33462596]
[1769987598952,0.22154,2259.3,2257.6,2.33462596]
[1769987599158,0.0085831,2259.4,2257.6,2.33462596]
[1769987599354,0.0085831,2259.5,2257.6,2.33462596]
[1769987599557,0.0085831,2259.2,2257.6,2.33462596]
[1769987599754,0.0085831,2259.2,2257.6,0.00570617]
[1769987599755,0.22159,2258.7,2257.6,0.00570617]
[1769987599955,0.0085831,2258.8,2257.1,2.33462596]
[1769987599956,0.0085831,2258.0,2257.1,2.33462596]
[1769987600152,0.0085831,2257.9,2256.6,2.33462596]
[1769987600356,9.96980385,2257.8,2256.0,2.33462596]
[1769987600562,0.2217,2257.6,2256.0,2.33462596]
[1769987600764,0.22156,2259.1,2256.2,2.33462596]
[1769987600964,0.00529076,2259.1,2257.2,2.33462596]
[1769987601262,4.44414465,2260.7,2257.9,2.33462596]
[1769987601461,2.50537908,2261.3,2258.6,0.2216]
[1769987601762,0.2214,2260.7,2258.8,2.33462596]
[1769987601962,0.22143,2260.4,2258.8,2.33462596]
[1769987602165,0.0038798,2260.4,2258.8,2.33782113]
[1769987602459,2.47273855,2261.7,2258.9,0.22156]
[1769987602658,4.97811763,2262.2,2259.0,2.33462596]
[1769987602960,2.47273855,2263.2,2260.1,2.33462596]
[1769987603157,0.01027512,2263.5,2260.9,2.33462596]
[1769987603461,2.47273855,2265.9,2262.8,2.33462596]
[1769987603659,4.97811763,2266.3,2263.0,2.33462596]
[1769987603857,4.97811763,2266.3,2262.9,32.228]
[1769987603858,0.2208,2266.8,2263.2,2.33462596]
[1769987604064,2.50537908,2265.8,2263.3,3.989]
[1769987604262,6.52796623,2266.2,2263.4,2.33462596]
[1769987604263,2.82665691,2266.2,2263.4,2.33462596]
[1769987604457,2.82665691,2266.2,2263.5,2.33462596]
[1769987604656,2.50537908,2266.1,2263.5,2.33462596]
[1769987604862,0.32127783,2266.2,2263.8,2.33462596]
[1769987605066,0.02016639,2265.2,2263.8,2.33462596]
[1769987605264,0.02016639,2264.6,2263.3,3.989]
[1769987605560,0.22097,2265.2,2263.3,3.989]
[1769987605561,2.50537908,2264.7,2263.3,3.989]
[1769987605757,2.72629908,2265.7,2263.4,2.33462596]
[1769987605955,2.50537908,2266.1,2263.5,5.38764459]
[1769987606157,2.50537908,2264.2,2262.8,0.00510841]
[1769987606464,0.02016639,2262.9,2261.5,3.987]
[1769987606662,2.50537908,2263.3,2261.5,3.987]
[1769987606857,2.52554547,2263.3,2261.6,40.8]
[1769987607058,0.0046079,2264.2,2261.6,40.8]
[1769987607266,0.0046079,2264.2,2262.1,5.38764459]
[1769987607466,0.0046079,2264.2,2262.6,5.38764459]
[1769987607667,2.50537908,2265.2,2262.7,44.879]
[1769987607867,2.52554547,2265.0,2262.8,3.986]
[1769987608062,2.50537908,2265.9,2262.9,2.33462596]
[1769987608361,2.50537908,2265.4,2262.9,2.33462596]
[1769987608566,0.22099,2264.9,2262.9,2.33462596]
[1769987608761,2.50537908,2263.7,2262.1,3.985]
[1769987608958,2.50537908,2263.0,2262.1,3.985]
[1769987609368,2.50537908,2263.5,2262.1,3.985]
[1769987609663,2.50537908,2264.0,2262.1,6.31962596]
[1769987609863,2.50537908,2264.6,2262.2,2.33462596]
[1769987610067,2.50537908,2263.9,2262.2,3.984]
[1769987610265,2.50537908,2263.9,2262.3,2.33462596]
[1769987610464,2.50537908,2265.2,2262.9,2.33462596]
[1769987610669,2.50537908,2265.2,2263.1,2.33462596]
[1769987610868,2.72633908,2265.2,2263.1,2.33462596]
[1769987611065,2.50537908,2264.4,2262.9,3.984]
[1769987611272,2.50537908,2264.7,2262.9,3.984]
[1769987611771,2.50537908,2264.3,2262.7,3.983]
[1769987612166,2.50537908,2264.3,2262.7,6.31762596]
[1769987612364,2.50537908,2264.3,2262.8,40.8]
[1769987612565,2.50537908,2265.5,2262.9,2.33462596]
[1769987612766,2.50537908,2265.5,2263.2,2.33462596]
[1769987612970,0.32127783,2266.2,2264.1,2.33462596]
[1769987613171,0.32127783,2266.2,2264.6,2.33462596]
[1769987613367,2.50537908,2267.4,2265.1,2.55559596]
[1769987613571,2.50537908,2267.4,2265.1,0.00482157]
[1769987613779,2.50537908,2266.9,2265.2,2.33462596]
[1769987613967,2.50537908,2266.2,2265.1,3.98682157]
[1769987614370,2.50537908,2266.9,2265.2,2.33462596]
[1769987614673,2.50537908,2266.9,2265.3,2.33462596]
[1769987614868,0.22057,2269.2,2265.3,2.33462596]
[1769987615073,2.50537908,2269.1,2266.1,2.33462596]
[1769987615268,2.50537908,2269.1,2266.5,2.33462596]
[1769987615475,2.50537908,2269.1,2266.7,2.33462596]
[1769987615667,2.50537908,2269.6,2267.0,2.33462596]
[1769987615866,2.50537908,2269.6,2266.7,2.33934697]
[1769987615867,1.48887286,2269.8,2267.7,2.33462596]
[1769987616074,1.48887286,2269.8,2267.9,2.33462596]
[1769987616276,2.72734364,2271.2,2268.9,2.33462596]
[1769987616572,2.72734364,2271.2,2269.1,2.33462596]
[1769987616869,2.72734364,2271.2,2268.9,0.22521142]
[1769987616870,2.50537908,2271.1,2268.9,0.00461142]
[1769987617070,0.22047,2270.3,2269.0,3.98]
[1769987617276,2.50537908,2270.8,2269.0,2.46348816]
[1769987617676,5.38764459,2271.1,2269.1,2.4355131]
[1769987617970,0.22196456,2271.2,2269.1,2.4355131]
[1769987618176,2.37552187,2271.0,2269.1,2.4355131]
[1769987618572,2.37552187,2272.9,2269.8,2.4355131]
[1769987618776,2.37552187,2272.0,2269.3,2.4355131]
[1769987618972,2.37552187,2270.9,2268.8,2.4355131]
[1769987619172,5.38764459,2271.1,2267.6,27.8428]
[1769987619173,2.59605187,2269.6,2267.6,0.0008]
[1769987619377,2.37552187,2268.9,2267.1,2.4355131]
[1769987619580,2.81815643,2268.2,2266.4,2.4355131]
[1769987619876,2.37552187,2268.0,2266.3,3.976]
[1769987620076,2.37552187,2268.0,2266.3,6.4115131]
[1769987620284,0.22196456,2267.3,2266.3,0.00416312]
[1769987620476,2.37552187,2267.3,2265.4,2.4355131]
[1769987620679,5.38764459,2267.9,2265.7,0.22091]
[1769987620680,2.37552187,2267.9,2265.7,0.22091]
[1769987620872,2.37552187,2267.7,2265.5,40.8]
[1769987621077,2.37552187,2266.4,2265.0,3.976]
[1769987621282,2.37552187,2267.0,2265.0,2.4355131]
[1769987621479,2.37552187,2266.8,2265.0,0.00518532]
[1769987621678,2.37552187,2266.3,2264.9,3.976]
[1769987621883,2.37552187,2265.4,2262.7,6.4105131]
[1769987622075,2.37552187,2265.6,2263.7,2.65747766]
[1769987622281,2.37552187,2266.8,2264.2,2.4355131]
[1769987622585,2.37552187,2266.8,2264.4,2.4355131]
[1769987622775,2.38083519,2266.8,2264.4,2.43904219]
[1769987623381,2.37552187,2266.4,2264.4,2.43904219]
[1769987623583,2.37552187,2266.4,2264.5,40.8]
[1769987623784,2.37552187,2266.4,2264.6,2.4355131]
[1769987623980,0.00531332,2266.8,2264.8,2.4355131]
[1769987624181,2.37552187,2268.2,2265.7,2.4355131]
[1769987624386,2.37552187,2268.2,2265.9,2.4355131]
[1769987624586,2.37552187,2267.0,2264.8,2.4355131]
[1769987624782,2.59634187,2266.7,2264.8,2.4355131]
[1769987625082,2.37552187,2266.7,2264.8,2.4355131]
[1769987625283,2.380041,2266.7,2264.8,2.4355131]
[1769987625485,0.00451913,2266.7,2264.8,2.4355131]
[1769987625786,0.00451913,2266.7,2265.0,2.4355131]
[1769987625989,0.00451913,2266.7,2265.2,2.35376988]
[1769987626888,1.85906357,2267.2,2265.2,2.35376988]
[1769987627182,5.38764459,2267.7,2265.2,2.35376988]
[1769987627482,0.22077,2267.2,2265.1,3.975]
[1769987627682,5.38764459,2268.2,2265.2,2.35376988]
[1769987627887,0.22075,2267.3,2265.2,2.35376988]
[1769987628083,0.22078,2267.1,2265.2,2.35376988]
[1769987628283,0.00462791,2268.2,2265.3,2.35376988]
[1769987628483,0.22077,2267.2,2265.1,2.35376988]
[1769987628685,0.22083,2266.6,2264.5,2.35376988]
[1769987628887,2.57999235,2266.6,2264.5,2.35376988]
[1769987629078,2.35454444,2266.0,2263.9,2.35376988]
[1769987629389,2.35454444,2265.7,2263.9,2.35376988]
[1769987629588,2.576509,2265.0,2263.8,3.975]
[1769987629785,0.22196456,2264.6,2263.7,0.22196456]
[1769987630088,0.22196456,2264.8,2263.7,41.02196456]
[1769987630386,2.57552444,2265.0,2263.7,41.02196456]
[1769987630582,2.57552444,2265.0,2262.8,2.35376988]
[1769987630583,2.57556444,2264.6,2262.8,2.35376988]
[1769987630883,2.57560444,2264.2,2262.7,3.975]
[1769987631190,0.00479461,2265.0,2263.1,2.35376988]
[1769987631384,2.35454444,2266.5,2263.9,5.38764459]
[1769987631582,2.35454444,2267.0,2265.1,2.35376988]
[1769987631883,2.35454444,2268.1,2265.2,9.285]
[1769987632080,2.35454444,2269.5,2267.2,2.35376988]
[1769987632287,2.35940433,2269.5,2267.4,2.35376988]
[1769987632480,0.00485989,2269.5,2267.9,2.35376988]
[1769987632688,2.35454444,2269.4,2267.2,2.35704741]
[1769987632882,2.576509,2268.8,2267.2,0.00327753]
[1769987633084,2.35454444,2268.8,2267.2,0.00327753]
[1769987633286,2.35454444,2269.4,2267.2,2.35704741]
[1769987633487,2.35454444,2269.0,2267.2,2.35704741]
[1769987633686,0.22196456,2268.6,2267.3,40.8]
[1769987633988,0.22196456,2268.3,2267.3,40.8]
[1769987634286,2.35454444,2268.7,2267.3,40.8]
[1769987634591,2.35454444,2268.5,2267.2,0.00327753]
[1769987634891,2.35454444,2268.2,2266.7,40.8]
[1769987635383,0.22196456,2268.0,2266.7,40.8]
[1769987635589,2.35454444,2268.2,2266.3,3.975]
[1769987635888,2.35454444,2267.9,2266.3,3.98014717]
[1769987636089,0.22196456,2267.8,2266.4,40.8]
[1769987636291,0.22074,2267.4,2266.4,40.8]
[1769987636486,2.35454444,2266.6,2264.9,3.974]
[1769987636685,10.21369364,2267.3,2264.9,3.974]
[1769987636686,2.35454444,2266.3,2264.9,3.974]
[1769987636881,0.22092,2265.6,2264.9,2.48577081]
[1769987637085,0.22196456,2265.5,2264.9,2.03993081]
[1769987637281,2.35454444,2265.7,2263.9,3.974]
[1769987637482,0.00476365,2265.7,2264.0,2.35376988]
[1769987637682,0.22093,2265.5,2264.0,2.35376988]
[1769987638085,0.44289456,2265.5,2264.0,2.35376988]
[1769987638287,0.44289456,2265.5,2263.9,3.97827294]
[1769987638288,0.22196456,2265.0,2263.9,0.00427294]
[1769987638487,0.22196456,2264.8,2263.9,0.00427294]
[1769987638689,2.57552444,2265.0,2263.9,0.00427294]
[1769987638893,2.797489,2265.0,2263.9,0.00427294]
[1769987639187,2.35454444,2265.6,2263.9,0.00427294]
[1769987639391,2.35454444,2264.9,2263.9,0.00427294]
[1769987639689,2.576509,2264.6,2262.8,6.32776988]
[1769987639886,2.35454444,2264.6,2262.9,2.35376988]
[1769987640585,0.22108,2264.0,2262.9,0.00441455]
[1769987640787,0.22656279,2264.0,2262.9,0.00441455]
[1769987640986,0.00548279,2264.0,2262.9,2.35818443]
[1769987641183,2.35454444,2265.3,2262.9,2.35818443]
[1769987641383,36.32342314,2265.8,2263.5,2.35376988]
[1769987641384,4.83214134,2265.6,2263.5,2.35376988]
[1769987641589,2.35454444,2264.8,2263.0,2.35376988]
[1769987641785,2.57556444,2264.6,2262.9,0.00441455]
[1769987642292,2.57556444,2264.6,2262.9,2.35818443]
[1769987642293,2.35880708,2264.6,2262.9,2.35818443]
[1769987642789,2.4775969,2266.2,2263.9,0.22108]
[1769987642986,2.35454444,2266.5,2264.3,2.35376988]
[1769987643186,2.35454444,2266.5,2264.0,3.975]
[1769987643187,2.35454444,2265.9,2264.0,3.975]
[1769987643495,2.57552444,2265.1,2264.0,3.975]
[1769987643695,2.58088751,2265.1,2264.0,3.975]
[1769987643888,0.22101,2264.7,2264.0,0.97482562]
[1769987644193,0.22196456,2264.3,2263.1,2.35376988]
[1769987644386,2.35454444,2265.0,2263.3,2.35376988]
[1769987644689,0.22105,2264.3,2263.0,3.975]
[1769987644993,2.35454444,2264.6,2263.0,3.975]
[1769987645390,0.22101,2264.7,2263.1,2.35376988]
[1769987645595,0.00536307,2265.1,2263.1,2.35376988]
[1769987645892,7.74218903,2266.5,2264.4,2.35376988]
[1769987646087,10.44056593,2267.0,2264.6,2.35376988]
[1769987646292,2.35454444,2266.7,2265.0,2.35376988]
[1769987646489,2.4775969,2267.1,2265.0,2.35376988]
[1769987646689,2.35454444,2266.2,2264.9,3.976]
[1769987646994,0.22196456,2265.0,2263.8,3.976]
[1769987647295,0.22106,2264.2,2262.8,6.32976988]
[1769987647600,0.22101,2264.7,2262.9,2.52631922]
[1769987647800,4.83648131,2264.6,2262.9,2.53028011]
[1769987648093,5.38764459,2263.8,2262.1,40.8]
[1769987648296,5.38764459,2263.8,2260.7,0.22139]
[1769987648297,2.34822156,2262.6,2260.7,2.52631922]
[1769987648498,4.83648131,2262.5,2260.7,2.52631922]
[1769987648792,2.34822156,2263.6,2261.2,2.52631922]
[1769987648992,2.34822156,2263.6,2260.8,11.304]
[1769987648993,7.73586615,2262.5,2260.6,2.52631922]
[1769987649194,2.34822156,2262.3,2260.6,2.53145996]
[1769987649392,0.22129,2261.9,2260.6,2.53145996]
[1769987649590,4.82581846,2262.2,2260.6,0.00514074]
[1769987649793,5.04469632,2262.1,2260.6,2.53145996]
[1769987649992,0.2213,2261.7,2260.6,0.00514074]
[1769987650195,0.22131,2261.6,2260.6,0.00514074]
[1769987650392,0.22133,2261.4,2260.0,2.52631922]
[1769987650593,2.34822156,2261.7,2259.4,2.52631922]
[1769987650796,0.22135,2261.2,2259.4,2.52631922]
[1769987651305,0.21286293,2260.8,2259.4,2.52631922]
[1769987651506,0.21286293,2260.8,2259.4,2.52999386]
[1769987651507,0.00324373,2260.8,2259.4,2.52999386]
[1769987651702,0.22463373,2260.8,2259.4,2.52999386]
[1769987651907,0.21286293,2260.6,2259.4,2.52999386]
[1769987652204,0.00324373,2260.8,2259.4,0.00367464]
[1769987652404,0.21286293,2260.5,2259.4,0.00367464]
[1769987652606,0.00324373,2260.8,2259.4,2.52999386]
[1769987653204,0.22132,2261.5,2259.4,2.52999386]
[1769987653409,2.34822156,2262.1,2259.4,2.52999386]
[1769987653606,2.34822156,2262.6,2259.6,2.52631922]
[1769987653905,0.22131,2261.7,2259.8,2.52631922]
[1769987654210,0.00376429,2261.7,2259.8,2.52631922]
[1769987654412,0.00376429,2261.7,2260.1,2.52631922]
[1769987654612,0.22119,2262.8,2260.1,2.74776922]
[1769987654911,0.22122,2262.6,2260.1,2.74776922]
[1769987655208,0.22122,2262.5,2260.1,2.74776922]
[1769987655403,2.34822156,2263.0,2260.1,2.52631922]
[1769987655404,7.73586615,2262.0,2260.1,2.52631922]
[1769987655609,0.22132,2261.6,2260.2,2.52631922]
[1769987656002,0.21286293,2261.4,2260.2,2.52631922]
[1769987656203,0.00487738,2262.0,2260.2,2.52631922]
[1769987656405,0.21286293,2261.7,2260.2,2.52631922]
[1769987656803,0.00487738,2262.0,2260.2,2.52631922]
[1769987657410,0.22614738,2262.0,2260.2,2.52631922]
[1769987657610,0.00487738,2262.0,2260.5,2.52631922]
[1769987657811,2.21619377,2263.4,2261.2,2.52631922]
[1769987658010,2.34822156,2264.2,2262.0,2.52631922]
[1769987658311,5.60855459,2265.7,2263.4,2.52631922]
[1769987658512,0.22091,2265.7,2263.6,2.52631922]
[1769987658711,0.00359573,2265.7,2264.2,2.74736922]
[1769987658911,0.00359573,2265.7,2264.2,2.52631922]
[1769987659108,0.22094,2265.4,2263.6,2.53089674]
[1769987659309,0.00359573,2265.7,2263.6,2.53089674]
[1769987659506,5.60050752,2265.6,2263.6,2.53089674]
[1769987659705,0.00359573,2265.7,2263.8,2.52631922]
[1769987659913,0.00359573,2265.7,2264.0,2.52631922]
[1769987660109,0.21645866,2265.7,2264.0,2.52631922]
[1769987660310,2.34822156,2265.2,2263.6,0.00457752]
[1769987660512,2.56923156,2264.7,2263.6,0.00457752]
[1769987660814,0.21286293,2263.7,2262.2,40.8]
[1769987661012,2.34822156,2263.3,2261.8,3.98]
[1769987661210,2.4775969,2264.3,2260.6,2.52631922]
[1769987661211,2.34822156,2262.7,2260.6,2.52631922]
[1769987661407,0.22123,2262.4,2260.5,2.52631922]
[1769987661612,2.57362423,2262.4,2260.5,2.531642]
[1769987661807,0.00417267,2262.4,2260.5,2.531642]
[1769987662009,0.21286293,2262.3,2260.5,2.531642]
[1769987662209,0.00417267,2262.4,2260.5,2.531642]
[1769987662416,0.22106,2264.2,2261.5,2.52631922]
[1769987662608,2.56929156,2264.1,2261.7,2.52631922]
[1769987662808,0.22109,2263.8,2261.7,2.52631922]
[1769987663117,0.21286293,2264.1,2261.9,2.52631922]
[1769987663311,0.22107,2264.1,2261.9,2.52631922]
[1769987663617,0.22107,2264.1,2261.6,3.98]
[1769987663618,0.00468969,2264.1,2262.4,2.74754922]
[1769987663812,0.00468969,2264.1,2262.4,2.53143332]
[1769987664118,0.21286293,2264.0,2262.4,2.53143332]
[1769987664412,0.22112,2263.6,2262.4,0.0051141]
[1769987664612,0.22113,2263.5,2262.4,0.0051141]
[1769987664812,0.21286293,2263.2,2262.4,0.0051141]
[1769987665010,2.34822156,2263.9,2262.4,0.0051141]
[1769987665217,0.21286293,2263.3,2262.4,0.0051141]
[1769987665418,0.21286293,2262.9,2262.4,0.0051141]
[1769987665614,0.2211,2263.8,2262.4,0.0051141]
[1769987665916,2.45872648,2264.1,2262.4,2.53143332]
[1769987666113,0.00468969,2264.1,2262.4,2.53143332]
[1769987666315,2.45403679,2265.1,2262.6,2.74751922]
[1769987666517,2.34822156,2264.9,2262.8,2.52631922]
[1769987666717,0.22101,2264.7,2262.8,2.52631922]
[1769987666917,4.80225835,2264.8,2262.8,2.52631922]
[1769987667109,0.21286293,2264.7,2262.8,2.52631922]
[1769987667309,0.22097,2265.1,2262.8,2.52631922]
[1769987667516,0.00208412,2265.1,2263.3,2.52631922]
[1769987667712,0.00208412,2265.1,2262.7,3.98]
[1769987667713,0.00208412,2265.1,2263.8,2.52631922]
[1769987667911,0.22098,2265.0,2263.8,2.52631922]
[1769987668215,0.00208412,2265.1,2262.4,0.0051141]
[1769987668216,0.21286293,2264.3,2263.2,2.52631922]
[1769987668414,0.22102,2264.6,2263.2,2.52631922]
[1769987668614,0.21286293,2264.4,2263.2,43.32631922]
[1769987668815,0.21286293,2264.2,2263.2,43.32631922]
[1769987669011,2.45612091,2265.1,2263.3,2.52631922]
[1769987669212,4.81200335,2265.0,2263.3,2.52631922]
[1769987669416,0.00208412,2265.1,2263.3,2.52631922]
[1769987669714,6.18100527,2266.1,2263.2,40.8]
[1769987669715,2.45403679,2266.4,2264.6,2.52631922]
[1769987669921,2.45403679,2266.4,2263.2,40.8]
[1769987669922,2.34822156,2266.9,2265.0,2.52631922]
[1769987670120,2.34822156,2266.5,2264.4,2.52631922]
[1769987670316,2.34822156,2265.6,2263.6,2.52631922]
[1769987670512,0.22105,2264.3,2263.5,3.979]
[1769987670713,2.34822156,2264.8,2263.6,5.97e-06]
[1769987670714,4.80225835,2264.6,2263.6,5.97e-06]
[1769987670917,0.21286293,2263.7,2262.6,2.52631922]
[1769987671117,0.21286293,2264.6,2262.6,2.52631922]
[1769987671323,0.22097,2265.1,2262.6,2.52631922]
[1769987671526,0.22105,2264.4,2262.8,2.52631922]
[1769987671720,0.22106,2264.2,2262.8,2.52631922]
[1769987671920,0.21286293,2264.1,2262.8,2.53031386]
[1769987672217,4.80225835,2265.5,2263.6,0.22111]
[1769987672524,2.56915156,2265.5,2263.8,2.52631922]
[1769987673019,2.45403679,2266.0,2263.8,2.52631922]
[1769987673222,2.56108449,2265.0,2262.9,2.52631922]
[1769987673525,4.80225835,2264.8,2263.1,2.52631922]
[1769987673718,0.2211,2263.8,2262.8,0.00399464]
[1769987673918,5.02717967,2263.7,2262.8,0.00399464]
[1769987674118,0.21286293,2262.9,2261.6,2.52631922]
[1769987674323,2.45403679,2263.4,2261.6,2.52631922]
[1769987674525,2.45403679,2263.3,2261.6,2.52631922]
[1769987674725,0.22117,2263.0,2261.6,2.52631922]
[1769987675021,4.80697271,2262.9,2261.1,2.52631922]
[1769987675223,4.80225835,2262.4,2261.1,0.00431704]
[1769987675520,0.21286293,2262.4,2261.1,2.53063626]
[1769987675725,0.22123,2262.4,2261.1,2.53063626]
[1769987675926,2.34822156,2262.7,2261.1,2.53063626]
[1769987676124,0.21286293,2262.3,2261.1,2.53063626]
[1769987676321,0.21286293,2262.2,2261.1,2.53063626]
[1769987676521,0.22124,2262.4,2261.1,2.53063626]
[1769987676820,2.34822156,2262.7,2261.1,2.53063626]